bitfinex/quotes_SOLUSD_20250228
["timestamp","ask_amount","ask_price","bid_price","bid_amount"]
[1740718368447,0.063,129.03,129.02,185.65181043]
[1740718368661,0.063,129.04,129.03,18.79181043]
[1740718368856,0.063,129.04,129.03,155.29181043]
[1740718369469,0.063,129.09,129.07,18.79181043]
[1740718369980,0.063,129.09,129.08,38.64964886]
[1740718370151,0.063,129.09,129.08,49.15181043]
[1740718371273,0.063,129.09,129.08,185.65181043]
[1740718371573,0.063,129.1,129.09,18.79181043]
[1740718371756,0.063,129.1,129.09,156.9174122]
[1740718371949,0.063,129.1,129.09,155.29181043]
[1740718372272,0.063,129.1,129.09,0.14216157]
[1740718372488,0.063,129.1,129.08,10.36]
[1740718375368,0.063,129.1,129.02,6.6567]
[1740718375576,0.063,129.1,129.03,10.36]
[1740718375774,0.063,129.1,129.04,0.14216157]
[1740718376378,0.063,129.1,128.99,1.62687834]
[1740718376559,0.063,129.1,129.02,10.36]
[1740718376876,1.95776996,129.11,129.05,20.0]
[1740718377461,1.95776996,129.11,129.02,10.36]
[1740718377768,1.95776996,129.11,129.05,20.0]
[1740718378574,1.95776996,129.11,129.06,20.14216157]
[1740718379778,52.78265801,129.15,129.06,20.14216157]
[1740718380480,52.78265801,129.15,129.08,0.14216157]
[1740718380663,52.78265801,129.15,129.07,20.0]
[1740718381272,52.78265801,129.14,129.02,10.34]
[1740718381477,52.78265801,129.13,129.02,10.34]
[1740718381782,52.78265801,129.13,129.0,0.03]
[1740718381969,7.7447,129.12,129.0,18.82181043]
[1740718382475,52.78265801,129.13,129.01,1.62717457]
[1740718382672,60.52695801,129.13,129.03,20.0]
[1740718382876,2.1288,129.12,129.03,20.0]
[1740718383065,54.91145801,129.12,129.0,18.67964886]
[1740718383267,52.78265801,129.11,129.0,0.03]
[1740718383470,52.78265801,129.1,129.0,0.03]
[1740718383672,6.0833,129.09,129.0,0.03]
[1740718384261,13.83,129.09,129.02,20.0]
[1740718384888,6.0833,129.09,129.02,20.0]
[1740718385187,52.78265801,129.08,129.02,20.0]
[1740718385381,52.78265801,129.07,129.0,0.03]
[1740718386386,60.53045801,129.07,129.02,20.0]
[1740718387182,52.78265801,129.06,129.02,20.0]
[1740718387376,52.78265801,129.08,129.02,20.0]
[1740718388374,52.78265801,129.13,129.1,20.0]
[1740718388571,52.78265801,129.13,129.06,10.34]
[1740718388775,52.78265801,129.12,129.09,20.0]
[1740718391291,52.78265801,129.11,129.06,10.34]
[1740718391485,52.78265801,129.14,129.09,20.0]
[1740718391691,52.78265801,129.13,129.09,20.0]
[1740718393895,52.81265801,129.15,129.1,18.64964886]
[1740718394083,0.03,129.15,129.14,20.0]
[1740718395275,0.03,129.15,129.08,81.6]
[1740718395589,0.03,129.15,129.07,0.14216157]
[1740718395797,0.03,129.15,129.07,18.79181043]
[1740718395984,0.03,129.15,129.12,20.0]
[1740718397389,0.03,129.15,129.13,18.64964886]
[1740718397792,0.03,129.15,129.11,20.0]
[1740718398504,0.03,129.15,129.12,18.79181043]
[1740718399283,0.03,129.15,129.11,20.0]
[1740718399481,0.03,129.15,129.12,18.64964886]
[1740718400181,0.03,129.15,129.11,20.0]
[1740718400994,0.03,129.15,129.14,20.0]
[1740718401197,0.03,129.15,129.14,38.79181043]
[1740718401406,0.03,129.15,129.14,40.41702325]
[1740718402085,0.03,129.15,129.12,10.383]
[1740718403102,0.03,129.15,129.14,20.0]
[1740718403285,0.03,129.15,129.12,10.383]
[1740718403706,0.03,129.15,129.13,0.14216157]
[1740718404004,0.03,129.15,129.13,18.79181043]
[1740718404886,52.78265801,129.22,129.16,20.0]
[1740718405093,0.063,129.23,129.2,20.0]
[1740718405288,0.063,129.23,129.16,1.62529175]
[1740718405289,0.063,129.23,129.21,18.64964886]
[1740718405598,0.063,129.23,129.22,0.14216157]
[1740718405800,0.03,129.28,129.24,20.0]
[1740718406003,0.03,129.28,129.25,20.41600087]
[1740718406193,0.03,129.28,129.27,20.14216157]
[1740718406395,0.03,129.28,129.27,38.79181043]
[1740718406903,0.03,129.28,129.27,40.41538629]
[1740718407102,0.03,129.28,129.27,38.79181043]
[1740718407684,52.78265801,129.48,129.3,0.14216157]
[1740718407905,8.1298,129.5,129.32,0.14216157]
[1740718408100,52.78265801,129.48,129.36,0.14216157]
[1740718408419,52.78265801,129.47,129.36,20.14216157]
[1740718408784,52.78265801,129.46,129.32,1.62251654]
[1740718409009,52.78265801,129.46,129.32,1.76498264]
[1740718409194,52.78265801,129.46,129.34,0.14216157]
[1740718409396,52.78265801,129.46,129.37,0.14216157]
[1740718409595,52.78265801,129.46,129.37,18.79181043]
[1740718409792,52.78265801,129.46,129.37,29.11181043]
[1740718410391,5.4031094,129.49,129.39,18.79181043]
[1740718410591,5.4031094,129.49,129.41,18.79181043]
[1740718410797,4.2540094,129.55,129.45,0.14216157]
[1740718411210,4.2540094,129.55,129.44,10.32]
[1740718411408,4.2540094,129.55,129.45,0.14216157]
[1740718411710,4.2540094,129.55,129.45,18.79181043]
[1740718412294,54.91295801,129.56,129.45,18.79181043]
[1740718412812,2.1303,129.56,129.45,0.14216157]
[1740718413007,0.03,129.55,129.44,10.32]
[1740718413619,52.78265801,129.54,129.44,10.32]
[1740718414002,52.78265801,129.54,129.45,0.14216157]
[1740718414506,52.78265801,129.54,129.44,10.32]
[1740718414711,52.78265801,129.53,129.44,10.32]
[1740718417003,0.03,129.55,129.45,20.4135097]
[1740718417208,0.03,129.55,129.48,20.0]
[1740718417409,0.03,129.55,129.49,0.14216157]
[1740718417610,0.03,129.55,129.5,10.3]
[1740718418717,52.78265801,129.54,129.5,10.3]
[1740718418895,52.78265801,129.54,129.44,10.3]
[1740718419094,52.78265801,129.53,129.44,10.3]
[1740718420120,60.50285801,129.53,129.44,10.3]
[1740718420615,52.78265801,129.53,129.41,18.20182742]
[1740718420919,52.78265801,129.53,129.42,18.79181043]
[1740718422001,0.03,129.55,129.46,0.14216157]
[1740718422205,0.03,129.55,129.47,10.28]
[1740718423116,82.8,129.54,129.47,10.28]
[1740718423316,82.8,129.54,129.42,10.28]
[1740718423619,82.8,129.53,129.41,6.2997]
[1740718423996,20.0,129.49,129.36,16.8771]
[1740718424319,20.0,129.48,129.36,16.8771]
[1740718424525,20.0,129.48,129.37,18.79181043]
[1740718424724,20.0,129.48,129.36,16.8771]
[1740718424926,20.0,129.47,129.36,16.8771]
[1740718425125,82.8,129.46,129.36,6.5971]
[1740718425426,82.8,129.46,129.33,10.28]
[1740718425427,20.0,129.42,129.33,10.28]
[1740718425627,102.8,129.42,129.33,10.28]
[1740718425932,102.8,129.42,129.32,0.063]
[1740718426135,110.527,129.42,129.32,0.063]
[1740718426428,20.0,129.38,129.32,0.063]
[1740718426648,82.8,129.37,129.32,0.063]
[1740718427216,10.28,129.4,129.32,0.063]
[1740718427217,93.08,129.4,129.32,0.063]
[1740718427416,82.8,129.39,129.32,0.063]
[1740718428296,82.8,129.42,129.32,0.063]
[1740718429403,90.5268,129.42,129.32,0.063]
[1740718430004,20.0,129.38,129.32,0.063]
[1740718430217,82.8,129.37,129.32,0.063]
[1740718432638,82.8,129.36,129.32,0.063]
[1740718433643,82.8,129.35,129.32,0.063]
[1740718433941,45.04921176,129.34,129.32,0.063]
[1740718436845,45.04921176,129.33,129.32,0.063]
[1740718437048,26.52291043,129.35,129.32,0.063]
[1740718437233,26.52291043,129.35,129.22,6.325]
[1740718437436,82.8,129.32,129.22,6.325]
[1740718437641,82.8,129.31,129.22,6.325]
[1740718438758,6.0945,129.36,129.23,18.79181043]
[1740718439151,82.8,129.37,129.23,20.41600291]
[1740718439549,8.30754991,129.38,129.27,18.79181043]
[1740718439762,8.30754991,129.38,129.27,29.07181043]
[1740718439930,6.02494991,129.38,129.27,29.07181043]
[1740718440126,10.0094,129.42,129.27,29.07181043]
[1740718440331,2.2826,129.42,129.3,6.2181]
[1740718440558,82.8,129.41,129.31,18.79181043]
[1740718441365,0.14216157,129.39,129.3,6.2181]
[1740718441539,82.8,129.38,129.27,10.28]
[1740718441730,82.8,129.37,129.27,10.28]
[1740718441932,82.8,129.36,129.26,6.2942]
[1740718442565,90.5305,129.36,129.26,6.2942]
[1740718442945,18.79181043,129.35,129.23,2.2714]
[1740718443131,82.8,129.34,129.23,2.2714]
[1740718443333,82.8,129.34,129.22,6.1031]
[1740718444542,7.7327,129.32,129.22,6.1031]
[1740718444738,82.8,129.31,129.22,6.1031]
[1740718445236,82.8,129.3,129.22,6.1031]
[1740718445639,20.0,129.26,129.19,0.063]
[1740718445837,82.8,129.25,129.15,2.2498]
[1740718446043,82.8,129.24,129.15,2.2498]
[1740718446250,82.8,129.23,129.17,20.0]
[1740718446465,82.8,129.29,129.19,20.0]
[1740718446742,82.8,129.28,129.19,20.0]
[1740718446962,20.0,129.24,129.14,6.0219]
[1740718447161,82.8,129.23,129.14,6.0219]
[1740718449349,82.8,129.22,129.15,18.79181043]
[1740718449675,82.8,129.25,129.15,18.79181043]
[1740718450256,82.8,129.25,129.18,20.0]
[1740718450652,82.8,129.25,129.15,18.79181043]
[1740718450857,82.8,129.24,129.15,18.79181043]
[1740718451555,82.8,129.24,129.18,20.0]
[1740718451953,82.8,129.23,129.18,20.0]
[1740718452468,82.8,129.23,129.15,100.39181043]
[1740718452670,82.8,129.22,129.15,100.39181043]
[1740718453268,82.8,129.28,129.18,20.0]
[1740718453475,8.757,129.3,129.18,30.28]
[1740718453476,82.8,129.27,129.18,30.28]
[1740718454862,82.8,129.26,129.18,30.28]
[1740718455275,82.8,129.25,129.18,30.28]
[1740718455463,82.8,129.29,129.19,0.14216157]
[1740718455675,82.8,129.28,129.19,0.14216157]
[1740718455853,82.8,129.27,129.19,0.14216157]
[1740718457885,82.8,129.3,129.23,0.14216157]
[1740718458080,82.8,129.3,129.23,26.79786157]
[1740718459574,82.8,129.36,129.28,20.0]
[1740718459981,82.8,129.36,129.25,218.1]
[1740718460161,82.8,129.35,129.25,0.14216157]
[1740718460863,82.8,129.35,129.24,10.28]
[1740718461680,82.8,129.35,129.25,18.79181043]
[1740718461989,82.8,129.35,129.28,20.0]
[1740718462275,82.8,129.35,129.27,20.0]
[1740718463590,82.8,129.34,129.24,10.28]
[1740718463886,82.8,129.33,129.24,10.28]
[1740718464263,85.0968,129.32,129.19,136.563]
[1740718464464,6.6381,129.3,129.19,0.063]
[1740718464684,16.9181,129.3,129.19,0.063]
[1740718465487,24.6522,129.3,129.19,0.063]
[1740718465664,16.9181,129.3,129.19,0.063]
[1740718466880,16.9181,129.3,129.19,20.063]
[1740718467281,101.59181043,129.29,129.19,0.063]
[1740718467585,90.5351,129.28,129.19,0.063]
[1740718467969,82.8,129.28,129.19,0.063]
[1740718468791,24.6521,129.3,129.19,20.063]
[1740718468792,82.8,129.27,129.19,20.063]
[1740718469783,82.8,129.26,129.2,0.14216157]
[1740718470091,82.8,129.26,129.2,18.79181043]
[1740718470670,82.8,129.26,129.2,0.14216157]
[1740718471384,82.8,129.26,129.23,20.0]
[1740718474484,82.8,129.26,129.2,10.28]
[1740718474679,82.8,129.29,129.21,18.79181043]
[1740718474892,82.8,129.29,129.24,20.0]
[1740718475185,82.8,129.28,129.24,20.0]
[1740718477077,82.83,129.28,129.24,20.0]
[1740718477979,0.03,129.28,129.27,20.14216157]
[1740718478300,0.03,129.28,129.27,30.40216157]
[1740718478477,0.03,129.28,129.27,30.26]
[1740718478881,0.03,129.28,129.27,10.26]
[1740718479084,0.03,129.28,129.22,10.26]
[1740718481189,0.03,129.28,129.2,81.6]
[1740718481190,82.8,129.27,129.2,10.26]
[1740718481395,82.8,129.27,129.22,20.0]
[1740718482494,0.03,129.28,129.19,0.063]
[1740718482495,82.8,129.26,129.19,0.063]
[1740718482699,82.8,129.25,129.19,0.063]
[1740718482878,82.8,129.24,129.19,0.063]
[1740718483083,82.8,129.23,129.19,0.063]
[1740718483397,82.8,129.22,129.19,0.063]
[1740718484587,82.8,129.22,129.15,20.0]
[1740718484790,82.8,129.21,129.13,0.063]
[1740718485399,6.5735,129.23,129.15,20.0]
[1740718485400,82.8,129.2,129.15,20.0]
[1740718485797,6.5735,129.23,129.15,20.0]
[1740718485798,82.8,129.19,129.15,20.0]
[1740718485998,82.8,129.18,129.13,0.063]
[1740718486382,82.8,129.18,129.14,20.0]
[1740718487307,82.8,129.18,129.16,20.0]
[1740718488294,82.8,129.22,129.2,20.0]
[1740718489804,89.3096,129.27,129.2,20.0]
[1740718490007,82.8,129.26,129.2,20.0]
[1740718490216,88.89337412,129.26,129.2,20.0]
[1740718490413,82.8,129.26,129.2,20.0]
[1740718490583,82.8,129.26,129.24,20.0]
[1740718490793,8.40349729,129.28,129.24,20.0]
[1740718492005,8.40349729,129.28,129.23,20.0]
[1740718492505,82.8,129.27,129.2,20.0]
[1740718492808,82.8,129.26,129.2,20.0]
[1740718495011,82.8,129.26,129.24,1.0]
[1740718495187,82.8,129.25,129.24,1.0]
[1740718496000,8.40349729,129.28,129.24,1.0]
[1740718496287,8.40349729,129.28,129.14,10.26]
[1740718496288,18.79181043,129.27,129.14,10.26]
[1740718496895,18.79181043,129.27,129.16,20.0]
[1740718497301,8.40349729,129.28,129.16,20.0]
[1740718497518,16.13899729,129.28,129.16,20.0]
[1740718497814,18.79181043,129.27,129.16,20.0]
[1740718498590,18.79181043,129.27,129.15,20.0]
[1740718498797,18.79181043,129.25,129.13,0.063]
[1740718499121,14.255,129.26,129.15,20.0]
[1740718499329,6.5185,129.26,129.15,20.0]
[1740718499711,14.2549,129.26,129.15,20.0]
[1740718500016,82.8,129.25,129.15,20.0]
[1740718501311,90.5371,129.25,129.15,20.0]
[1740718501496,82.8,129.25,129.15,20.0]
[1740718501903,90.5369,129.25,129.15,20.0]
[1740718502618,20.99341043,129.23,129.13,0.063]
[1740718502812,18.79181043,129.21,129.13,0.063]
[1740718503011,93.06,129.22,129.13,0.063]
[1740718503402,100.7988,129.22,129.13,0.063]
[1740718503606,6.159,129.2,129.13,0.063]
[1740718503807,18.79181043,129.18,129.13,0.063]
[1740718504105,2.1395,129.17,129.13,0.063]
[1740718504403,82.8,129.16,129.13,0.063]
[1740718505620,82.8,129.15,129.13,0.063]
[1740718506435,6.002,129.13,129.01,30.38267266]
[1740718506737,82.8,129.12,129.01,24.00617266]
[1740718506937,82.8,129.12,129.05,20.0]
[1740718507116,82.8,129.11,129.05,20.0]
[1740718507516,82.8,129.11,129.01,105.74833423]
[1740718507737,82.8,129.1,129.01,105.74833423]
[1740718508107,82.8,129.1,129.05,20.0]
[1740718508306,82.8,129.09,129.05,20.0]
[1740718508614,82.8,129.09,129.06,0.14216157]
[1740718508804,82.8,129.16,129.06,100.39181043]
[1740718509010,82.8,129.18,129.06,156.91799967]
[1740718509203,82.8,129.18,129.08,18.79181043]
[1740718509398,82.8,129.2,129.1,18.79181043]
[1740718509600,82.8,129.2,129.12,18.79181043]
[1740718510029,82.8,129.2,129.11,11.88561291]
[1740718510030,82.8,129.2,129.11,10.26]
[1740718510215,82.8,129.2,129.12,0.14216157]
[1740718510416,82.8,129.2,129.12,18.79181043]
[1740718510630,82.8,129.19,129.14,20.0]
[1740718510935,82.8,129.26,129.14,218.1]
[1740718511102,82.8,129.25,129.17,20.0]
[1740718511725,89.05744683,129.25,129.19,20.0]
[1740718512218,82.8,129.24,129.16,10.26]
[1740718512521,82.8,129.24,129.19,20.0]
[1740718512907,82.863,129.27,129.19,20.0]
[1740718513310,0.063,129.27,129.2,38.79181043]
[1740718513510,0.063,129.27,129.2,20.0]
[1740718514222,0.063,129.27,129.21,20.0]
[1740718514923,82.8,129.26,129.15,2.2021]
[1740718515226,82.8,129.26,129.15,12.4421]
[1740718515428,82.8,129.26,129.19,20.0]
[1740718515627,82.8,129.25,129.15,12.4421]
[1740718515828,82.8,129.24,129.15,12.4421]
[1740718516132,82.8,129.23,129.18,20.0]
[1740718516330,82.8,129.26,129.19,20.0]
[1740718516624,82.863,129.27,129.23,20.0]
[1740718517333,0.063,129.27,129.24,20.0]
[1740718517706,0.063,129.27,129.25,0.14216157]
[1740718517914,0.063,129.27,129.26,38.79181043]
[1740718518522,0.063,129.27,129.26,20.0]
[1740718519713,0.063,129.27,129.26,38.79181043]
[1740718520034,0.063,129.27,129.26,20.0]
[1740718520815,0.063,129.27,129.22,10.24]
[1740718521736,0.063,129.27,129.26,20.0]
[1740718521915,0.063,129.27,129.26,38.79181043]
[1740718522814,0.063,129.27,129.25,20.0]
[1740718523028,0.063,129.27,129.26,20.0]
[1740718524730,0.063,129.27,129.26,122.01601412]
[1740718525030,0.03,129.28,129.27,27.03491043]
[1740718525815,0.03,129.28,129.27,24.88641043]
[1740718526015,0.03,129.28,129.23,90.1162]
[1740718526212,0.03,129.28,129.26,20.0]
[1740718526426,0.03,129.28,129.27,20.0]
[1740718527831,0.03,129.28,129.22,81.6]
[1740718528215,0.03,129.28,129.25,20.0]
[1740718528538,75.33,129.3,129.27,20.0]
[1740718529034,75.33,129.3,129.22,81.6]
[1740718529337,75.33,129.29,129.22,81.6]
[1740718529729,75.33,129.28,129.2,16.3826]
[1740718530038,75.33,129.27,129.2,16.3826]
[1740718530336,75.33,129.26,129.23,20.0]
[1740718530710,75.33,129.25,129.19,100.24964886]
[1740718531119,75.33,129.25,129.19,81.6]
[1740718531324,75.33,129.24,129.16,6.1042]
[1740718531639,75.33,129.23,129.15,81.63]
[1740718531937,75.33,129.22,129.18,20.0]
[1740718533438,75.33,129.22,129.2,20.0]
[1740718533641,75.33,129.24,129.2,20.0]
[1740718534427,75.33,129.24,129.17,81.6]
[1740718534624,75.33,129.23,129.15,0.03]
[1740718536024,75.33,129.23,129.16,20.0]
[1740718536848,18.9323,129.25,129.16,20.0]
[1740718536849,75.33,129.22,129.16,20.0]
[1740718537757,75.33,129.21,129.15,0.03]
[1740718538040,75.33,129.2,129.15,0.03]
[1740718538239,75.33,129.19,129.15,20.03]
[1740718538445,75.33,129.24,129.15,20.03]
[1740718539932,18.9323,129.25,129.15,20.03]
[1740718539933,75.33,129.23,129.16,18.79181043]
[1740718540250,75.33,129.23,129.19,20.0]
[1740718540443,75.33,129.28,129.23,20.0]
[1740718540635,75.33,129.27,129.23,20.0]
[1740718540835,75.33,129.26,129.19,20.0]
[1740718541049,75.33,129.25,129.19,20.0]
[1740718542262,75.33,129.25,129.23,20.0]
[1740718542457,75.33,129.28,129.23,20.0]
[1740718542664,75.33,129.27,129.23,20.0]
[1740718542853,75.33,129.27,129.24,20.0]
[1740718543055,75.33,129.27,129.21,10.22]
[1740718543351,75.33,129.29,129.22,18.79181043]
[1740718543539,0.063,129.3,129.22,100.39181043]
[1740718543740,0.063,129.3,129.23,0.14216157]
[1740718544240,75.33,129.29,129.22,81.6]
[1740718544450,75.33,129.29,129.23,18.79181043]
[1740718544834,75.33,129.29,129.22,81.6]
[1740718546056,75.33,129.28,129.18,10.22]
[1740718546229,75.33,129.27,129.18,10.22]
[1740718547336,75.33,129.27,129.21,20.0]
[1740718547554,75.33,129.26,129.21,20.0]
[1740718550354,75.33,129.26,129.18,10.22]
[1740718550548,75.33,129.25,129.18,10.22]
[1740718550757,75.33,129.24,129.15,0.03]
[1740718550956,75.33,129.23,129.15,0.03]
[1740718551258,75.33,129.23,129.17,20.0]
[1740718552060,75.33,129.23,129.18,0.03]
[1740718552242,75.33,129.22,129.18,0.03]
[1740718553744,75.33,129.21,129.18,0.03]
[1740718553942,75.33,129.2,129.18,0.03]
[1740718554141,7.7387,129.22,129.18,0.03]
[1740718554142,75.33,129.19,129.18,0.03]
[1740718554962,82.8,129.18,129.02,224.2279]
[1740718555171,82.8,129.18,129.05,10.22]
[1740718555357,82.8,129.17,129.05,10.22]
[1740718556068,82.8,129.17,129.08,20.0]
[1740718556371,82.8,129.16,129.08,20.0]
[1740718557364,82.8,129.16,129.09,20.0]
[1740718557866,82.8,129.15,129.09,20.0]
[1740718558366,82.8,129.15,129.13,20.0]
[1740718559763,82.8,129.22,129.16,20.0]
[1740718559964,82.8,129.22,129.14,81.6]
[1740718560166,6.11436649,129.23,129.11,91.82]
[1740718560167,82.8,129.21,129.11,91.82]
[1740718560475,82.8,129.2,129.14,20.0]
[1740718560776,82.8,129.19,129.14,20.0]
[1740718561863,82.8,129.18,129.07,81.6]
[1740718562052,82.8,129.17,129.07,91.8]
[1740718562252,82.8,129.16,129.07,10.2]
[1740718562484,82.8,129.15,129.07,10.2]
[1740718563671,82.8,129.15,129.1,20.0]
[1740718563868,82.8,129.14,129.1,20.0]
[1740718564070,82.8,129.13,129.07,10.2]
[1740718564259,82.8,129.12,129.07,10.2]
[1740718564875,82.8,129.11,129.02,0.03]
[1740718565078,82.8,129.1,129.03,1.53600703]
[1740718565370,2.1597,129.07,129.02,0.03]
[1740718565676,82.8,129.06,129.02,0.03]
[1740718567080,0.1,129.04,129.02,0.03]
[1740718567574,0.1,129.04,129.02,20.03]
[1740718568155,0.1,129.04,129.02,0.03]
[1740718568657,0.1,129.04,129.02,20.03]
[1740718569576,82.9,129.04,129.02,0.03]
[1740718569874,82.8,129.03,129.01,0.063]
[1740718570080,82.8,129.03,129.0,0.03]
[1740718570461,82.8,129.02,129.0,0.03]
[1740718571148,0.1,129.04,129.01,20.0]
[1740718573455,0.1,129.04,129.03,20.0]
[1740718575287,0.1,129.04,129.0,10.23]
[1740718575475,82.8,129.03,129.0,10.23]
[1740718575776,82.8,129.03,129.0,0.03]
[1740718577883,82.8,129.02,129.0,0.03]
[1740718580590,82.8,129.01,128.92,0.03]
[1740718580889,82.8,129.0,128.92,0.03]
[1740718581188,82.8,129.0,128.94,20.0]
[1740718581793,82.8,128.99,128.92,0.03]
[1740718582590,88.8578,128.99,128.92,0.03]
[1740718582898,82.8,128.98,128.92,0.03]
[1740718583100,82.8,129.02,128.92,0.03]
[1740718583298,82.8,129.01,128.92,0.17216157]
[1740718584895,82.8,129.01,128.92,20.17216157]
[1740718586002,82.8,129.01,128.92,20.03]
[1740718586301,82.94216157,129.0,128.92,0.03]
[1740718586666,82.8,128.99,128.92,0.03]
[1740718586870,82.8,128.98,128.92,0.03]
[1740718587100,82.8,128.97,128.92,0.03]
[1740718587277,82.8,128.96,128.92,0.03]
[1740718587478,82.8,128.95,128.92,0.03]
[1740718587875,82.8,128.94,128.92,0.03]
[1740718588120,82.8,128.93,128.92,0.03]
[1740718588428,7.89426157,129.0,128.92,0.03]
[1740718588625,0.14216157,128.98,128.88,0.03]
[1740718588804,7.89426157,129.0,128.88,0.03]
[1740718588805,8.63156157,128.96,128.88,0.03]
[1740718589007,82.8,128.95,128.88,0.03]
[1740718589210,0.14216157,128.93,128.88,0.03]
[1740718589531,18.79181043,128.93,128.88,0.03]
[1740718589737,26.54811043,128.93,128.88,0.03]
[1740718590027,82.8,128.92,128.88,0.03]
[1740718590227,82.8,128.91,128.88,0.03]
[1740718590394,82.8,128.9,128.88,0.03]
[1740718590797,82.8,128.89,128.88,0.03]
[1740718591411,82.8,128.94,128.88,0.03]
[1740718591704,82.8,128.93,128.88,0.03]
[1740718592419,82.8,128.93,128.89,20.0]
[1740718593894,82.8,128.93,128.88,20.03]
[1740718595595,6.15851396,129.07,128.92,20.0]
[1740718595596,82.8,128.99,128.92,20.0]
[1740718595918,82.8,129.03,128.95,20.14216157]
[1740718596097,82.8,129.02,128.95,20.14216157]
[1740718596301,82.8,129.02,128.99,20.0]
[1740718596524,82.8,129.06,129.0,20.0]
[1740718596705,82.8,129.05,129.0,20.0]
[1740718596900,82.8,129.04,129.0,20.0]
[1740718598296,6.15851396,129.07,129.01,0.14216157]
[1740718598500,82.8,129.09,129.0,20.0]
[1740718598819,82.8,129.08,129.04,20.0]
[1740718599416,82.8,129.11,129.05,0.14216157]
[1740718599617,82.8,129.14,129.06,20.0]
[1740718600717,82.8,129.13,129.06,20.0]
[1740718604505,82.8,129.12,129.06,20.0]
[1740718604704,82.8,129.11,129.06,20.0]
[1740718606025,82.8,129.1,129.03,10.2]
[1740718606329,82.8,129.09,128.98,81.6]
[1740718606507,82.8,129.08,128.98,10.18]
[1740718606711,82.8,129.08,129.01,20.0]
[1740718607033,82.8,129.07,129.01,20.0]
[1740718608440,82.8,129.06,128.96,10.18]
[1740718608746,82.8,129.11,129.05,20.0]
[1740718609045,82.8,129.1,129.05,20.0]
[1740718609218,88.87354649,129.14,129.07,0.14216157]
[1740718609420,82.8,129.13,129.06,6.4356]
[1740718609931,82.8,129.12,129.09,20.0]
[1740718610129,0.063,129.16,129.1,0.14216157]
[1740718610649,0.063,129.16,129.09,0.14216157]
[1740718610945,82.8,129.15,129.08,10.18]
[1740718611116,82.8,129.15,129.11,20.0]
[1740718611318,82.8,129.14,129.11,20.0]
[1740718611517,82.8,129.14,129.08,10.18]
[1740718611717,82.8,129.14,129.09,20.0]
[1740718612312,82.8,129.14,129.1,20.0]
[1740718613319,82.8,129.13,129.06,6.4356]